bitfinex/quotes_SOLUSD_20240829
["timestamp","ask_amount","ask_price","bid_price","bid_amount"]
[1724916040620,69.65005147,145.34,145.25,6.256]
[1724916041420,27.00639,145.33,145.25,6.256]
[1724916041617,45.0,145.32,145.25,7.63240211]
[1724916041830,64.65135147,145.32,145.25,6.256]
[1724916042037,20.0,145.31,145.25,6.256]
[1724916042844,20.0,145.31,145.25,7.63278117]
[1724916045660,20.0,145.31,145.25,6.256]
[1724916045828,20.0,145.31,145.25,7.63278081]
[1724916047734,20.0,145.31,145.26,15.4746]
[1724916051433,12.76965147,145.34,145.27,1.3767198]
[1724916051827,20.0,145.33,145.27,1.3767198]
[1724916052549,20.0,145.34,145.27,1.3767198]
[1724916055727,26.8804,145.34,145.26,28.24425147]
[1724916056050,12.76965147,145.33,145.26,15.4746]
[1724916056251,12.76965147,145.33,145.26,16.85115595]
[1724916056447,20.0,145.32,145.26,16.85115595]
[1724916057337,20.0,145.32,145.26,15.4746]
[1724916057843,12.76965147,145.31,145.26,15.4746]
[1724916059459,12.76965147,145.29,145.21,22.8825]
[1724916059638,12.76965147,145.22,145.17,22.8825]
[1724916059832,12.76965147,145.21,145.17,22.8825]
[1724916064640,12.76965147,145.23,145.17,22.8825]
[1724916066551,12.76965147,145.21,145.17,6.3982]
[1724916066756,12.76965147,145.19,145.13,22.6589]
[1724916067839,19.65625147,145.21,145.14,1.37784426]
[1724916068240,19.65625147,145.21,145.13,22.6589]
[1724916068753,19.65625147,145.21,145.14,1.37780743]
[1724916070069,12.76965147,145.22,145.15,1.3778072]
[1724916070358,20.0,145.21,145.15,1.3778072]
[1724916071047,17.207,145.29,145.16,12.76965147]
[1724916071048,12.76965147,145.24,145.16,12.76965147]
[1724916071255,20.0,145.23,145.17,1.37740828]
[1724916071469,20.0,145.23,145.18,1.37739566]
[1724916071637,12.76965147,145.26,145.19,21.8624]
[1724916071962,12.76965147,145.26,145.2,1.37720593]
[1724916073554,20.0,145.25,145.2,1.37720593]
[1724916075238,19.97269916,145.25,145.2,1.37720593]
[1724916076158,15.1647,145.3,145.21,1.37711108]
[1724916076463,12.76965147,145.28,145.21,1.37711108]
[1724916076840,12.76965147,145.28,145.19,21.8624]
[1724916077040,12.76965147,145.28,145.2,0.12549]
[1724916077461,20.0,145.27,145.2,0.12549]
[1724916078353,20.0,145.28,145.2,0.12549]
[1724916078858,20.0,145.28,145.2,12.89514147]
[1724916079065,20.0,145.28,145.21,0.36068061]
[1724916080041,20.0,145.28,145.21,0.55650579]
[1724916080764,20.0,145.28,145.21,0.98513492]
[1724916088460,20.0,145.28,145.2,1.11062492]
[1724916089249,20.0,145.28,145.2,1.50249507]
[1724916089475,20.0,145.28,145.21,1.37691024]
[1724916089645,20.0,145.29,145.21,1.37691024]
[1724916090952,20.0,145.3,145.21,1.37691024]
[1724916091174,45.0,145.29,145.21,1.37691024]
[1724916103483,51.8828,145.29,145.2,0.12549]
[1724916103672,64.65245147,145.29,145.2,0.12549]
[1724916104060,12.76965147,145.27,145.19,21.8624]
[1724916104264,65.0,145.26,145.19,21.8624]
[1724916116479,65.0,145.26,145.19,24.78129865]
[1724916117489,65.0,145.26,145.19,21.8624]
[1724916118391,19.65435147,145.25,145.19,21.8624]
[1724916118577,45.0,145.24,145.19,21.8624]
[1724916120997,39.65535147,145.23,145.15,21.4336]
[1724916121192,45.0,145.22,145.15,21.4336]
[1724916121494,45.0,145.22,145.16,1.37208929]
[1724916122692,45.0,145.22,145.15,21.4336]
[1724916124976,51.8861,145.22,145.15,21.4336]
[1724916125281,19.65625147,145.21,145.15,21.4336]
[1724916125480,45.0,145.2,145.15,21.4336]
[1724916126187,12.76965147,145.19,145.15,21.4336]
[1724916126389,45.0,145.18,145.15,21.4336]
[1724916126593,45.0,145.18,145.11,22.4201]
[1724916132683,12.76965147,145.17,145.11,22.4201]
[1724916132984,45.0,145.16,145.11,22.4201]
[1724916151209,45.0,145.16,145.08,6.4428]
[1724916151509,51.8889,145.16,145.08,6.4428]
[1724916152692,45.0,145.16,145.08,6.4428]
[1724916153305,12.76965147,145.15,145.08,6.4428]
[1724916153618,45.0,145.14,145.08,6.4428]
[1724916161195,12.76965147,145.13,145.08,6.4428]
[1724916161401,45.0,145.12,145.08,6.4428]
[1724916167004,45.0,145.12,145.07,15.862]
[1724916168516,51.8909,145.12,145.04,22.4512]
[1724916169212,12.76965147,145.11,145.04,22.4512]
[1724916169397,45.0,145.1,145.04,22.4512]
[1724916179823,45.0,145.1,145.01,12.76965147]
[1724916179824,51.8919,145.1,145.01,12.76965147]
[1724916180024,66.9796,145.1,145.0,23.089]
[1724916180213,66.9796,145.1,145.0,35.85865147]
[1724916180616,66.9796,145.1,145.01,2.92351429]
[1724916181535,12.76965147,145.09,145.01,2.92351429]
[1724916181733,45.0,145.08,145.0,35.85865147]
[1724916181930,45.0,145.08,145.01,2.92351333]
[1724916182316,12.76965147,145.07,145.01,2.92351333]
[1724916182527,12.76965147,145.05,145.01,2.92351333]
[1724916182813,45.0,145.04,145.01,2.92360531]
[1724916183443,45.0,145.04,144.97,19.39540531]
[1724916184619,45.0,145.04,144.97,19.39616462]
[1724916185742,45.0,145.04,144.96,6.42089]
[1724916186731,45.0,145.04,144.96,6.2954]
[1724916188538,45.0,145.04,144.95,15.69401752]
[1724916191520,45.0,145.04,144.95,12.76965147]
[1724916191927,45.0,145.04,144.95,15.69401885]
[1724916192628,12.76965147,145.03,144.95,2.92436738]
[1724916192829,45.0,145.02,144.95,2.92436738]
[1724916193444,45.0,145.02,144.94,15.81950885]
[1724916195139,45.0,145.02,144.94,12.89514147]
[1724916195325,45.0,145.02,144.94,15.8195982]
[1724916195722,45.0,145.02,144.96,12.76965147]
[1724916196220,15.4805,145.05,144.96,12.76965147]
[1724916196429,15.4805,145.05,144.98,12.76965147]
[1724916197734,45.0,145.04,144.98,12.76965147]
[1724916197937,15.4805,145.05,145.0,12.76965147]
[1724916198463,15.4805,145.05,144.98,12.76965147]
[1724916199849,45.0,145.04,144.98,12.76965147]
[1724916201148,45.0,145.04,144.98,15.6941082]
[1724916201539,45.0,145.04,144.98,12.76965147]
[1724916202344,45.0,145.04,144.98,15.69348113]
[1724916203053,45.0,145.04,145.0,12.76965147]
[1724916203641,15.6891,145.09,145.0,12.76965147]
[1724916203843,15.6891,145.09,145.02,12.76965147]
[1724916205138,45.0,145.08,145.02,12.76965147]
[1724916207651,45.0,145.08,145.02,14.1483733]
[1724916208731,45.0,145.08,145.02,14.14837329]
[1724916209227,45.0,145.08,145.02,1.37872182]
[1724916209434,45.0,145.08,145.01,15.69348113]
[1724916209647,45.0,145.08,145.01,12.76965147]
[1724916209857,45.0,145.08,145.01,15.69348113]
[1724916210149,45.0,145.08,145.01,12.76965147]
[1724916210450,45.0,145.08,145.01,15.69337106]
[1724916210842,15.6891,145.09,145.01,12.76965147]
[1724916211043,15.6891,145.09,145.02,2.92369281]
[1724916211969,15.6891,145.09,145.03,12.76965147]
[1724916212270,45.0,145.08,145.03,12.76965147]
[1724916212754,45.0,145.08,145.03,15.69316631]
[1724916212929,45.0,145.08,145.03,12.76965147]
[1724916213129,45.0,145.08,145.03,15.69316631]
[1724916213331,45.0,145.08,145.03,12.76965147]
[1724916215235,45.0,145.08,145.03,15.69314587]
[1724916215454,45.0,145.08,145.03,12.76965147]
[1724916217149,45.0,145.08,145.01,15.88650065]
[1724916217462,57.76965147,145.08,145.02,2.92351112]
[1724916217757,12.76965147,145.06,145.0,2.92399328]
[1724916217958,45.0,145.05,145.01,2.92399328]
[1724916218143,45.0,145.05,144.98,2.99192735]
[1724916218454,45.0,145.05,144.99,15.69366188]
[1724916218761,45.0,145.05,145.01,12.76965147]
[1724916218934,45.0,145.05,145.02,2.92401041]
[1724916219130,45.0,145.05,145.01,12.76965147]
[1724916219335,45.0,145.05,145.02,2.92375283]
[1724916219537,45.0,145.05,145.01,12.76965147]
[1724916219834,45.0,145.05,145.02,2.92375652]
[1724916220057,45.0,145.05,145.01,12.76965147]
[1724916220252,15.6891,145.09,145.01,12.76965147]
[1724916220450,65.0,145.08,145.01,12.76965147]
[1724916220956,65.0,145.08,145.02,2.92375556]
[1724916221259,65.0,145.08,145.03,2.92357737]
[1724916221559,65.0,145.08,145.01,12.76965147]
[1724916221729,65.0,145.08,145.02,2.92357833]
[1724916221930,65.0,145.08,145.03,2.92357833]
[1724916222146,15.6891,145.09,145.04,1.37749373]
[1724916222633,15.6891,145.09,145.03,12.76965147]
[1724916223054,15.6891,145.09,145.0,2.99165662]
[1724916223244,15.6891,145.09,145.02,12.76965147]
[1724916223447,45.0,145.08,145.03,2.9235496]
[1724916224138,45.0,145.08,145.02,12.76965147]
[1724916224452,45.0,145.08,145.03,2.92354677]
[1724916224637,45.0,145.08,145.02,12.76965147]
[1724916224838,45.0,145.08,145.03,2.9235244]
[1724916225043,45.0,145.08,145.02,12.76965147]
[1724916225243,45.0,145.08,145.03,2.92352809]
[1724916225458,45.0,145.08,145.02,12.76965147]
[1724916225640,45.0,145.08,145.03,2.9235495]
[1724916225839,45.0,145.08,145.02,12.76965147]
[1724916226147,45.0,145.08,145.03,2.92354987]
[1724916226459,45.0,145.08,145.02,12.76965147]
[1724916226640,45.0,145.08,145.03,2.92363276]
[1724916227050,45.0,145.08,145.02,12.76965147]
[1724916227561,45.0,145.08,145.03,2.92354714]
[1724916227761,45.0,145.08,145.02,12.76965147]
[1724916227966,45.0,145.08,145.03,2.92354618]
[1724916228161,45.0,145.08,145.02,14.14855296]
[1724916228462,45.0,145.08,145.03,2.92354618]
[1724916228660,45.0,145.08,145.02,14.14855296]
[1724916229162,45.0,145.08,145.02,12.76965147]
[1724916232966,15.6891,145.09,145.02,12.76965147]
[1724916234467,45.0,145.08,145.02,12.76965147]
[1724916235871,45.0,145.08,145.0,12.76965147]
[1724916236866,57.76965147,145.08,145.0,12.76965147]
[1724916238962,64.66245147,145.08,144.98,12.76965147]
[1724916239850,45.0,145.08,145.0,12.76965147]
[1724916240051,15.6891,145.09,145.02,12.76965147]
[1724916240375,15.6891,145.09,145.04,12.76965147]
[1724916243875,15.6891,145.09,145.03,12.76965147]
[1724916246877,45.0,145.08,145.03,12.76965147]
[1724916247376,15.6891,145.09,145.03,12.76965147]
[1724916247679,15.6891,145.09,145.05,12.76965147]
[1724916247870,15.4047,145.13,145.06,0.12549]
[1724916248289,12.76965147,145.12,145.04,12.76965147]
[1724916249278,45.0,145.11,145.04,12.76965147]
[1724916249580,45.0,145.12,145.04,12.76965147]
[1724916254251,45.0,145.12,145.05,1.05610234]
[1724916256685,64.66055147,145.12,145.04,12.76965147]
[1724916256876,64.66055147,145.12,145.02,12.76965147]
[1724916260422,12.76965147,145.1,145.0,12.76965147]
[1724916260560,45.0,145.09,145.0,12.76965147]
[1724916261977,45.0,145.09,145.02,12.76965147]
[1724916264789,45.0,145.09,145.01,0.12549]
[1724916265289,45.0,145.09,145.02,12.76965147]
[1724916270901,15.4047,145.08,144.98,6.3541]
[1724916271106,45.0,145.07,145.0,12.76965147]
[1724916271311,12.76965147,145.06,144.94,6.3541]
[1724916271602,15.4047,145.04,144.97,12.76965147]
[1724916272009,15.4047,145.04,144.99,12.76965147]
[1724916273009,15.4047,145.04,145.01,12.76965147]
[1724916273305,6.2112,145.08,145.03,12.76965147]
[1724916273487,21.6159,145.08,145.03,12.76965147]
[1724916275909,21.6159,145.08,145.01,12.76965147]
[1724916276108,45.0,145.07,145.01,12.76965147]
[1724916276807,45.0,145.07,144.98,12.76965147]
[1724916277991,45.0,145.07,144.95,8.63913839]
[1724916278210,45.0,145.07,144.98,12.76965147]
[1724916278697,16.043,145.06,144.98,12.76965147]
[1724916278896,45.0,145.05,144.98,12.76965147]
[1724916279497,45.0,145.05,144.99,0.34924712]
[1724916281195,45.0,145.05,144.98,12.76965147]
[1724916281405,45.0,145.05,144.94,22.0575]
[1724916281607,45.0,145.05,144.99,12.76965147]
[1724916283004,16.043,145.06,145.0,0.12549]
[1724916285307,16.043,145.06,145.01,12.76965147]
[1724916290457,16.043,145.06,145.02,2.92402689]
[1724916290586,6.8919,145.1,145.03,12.76965147]
[1724916290587,16.043,145.1,145.03,12.76965147]
[1724916290790,16.043,145.1,145.05,12.76965147]
[1724916291912,16.043,145.1,145.06,0.12549]
[1724916292116,6.2447,145.12,145.07,12.76965147]
[1724916292408,16.043,145.14,145.07,12.76965147]
[1724916292596,16.043,145.14,145.08,0.46669233]
[1724916294225,45.0,145.13,145.08,0.46669233]
[1724916294934,45.0,145.13,145.08,3.3888192]
[1724916297805,45.0,145.13,145.08,2.92212687]
[1724916300129,28.81265147,145.18,145.09,12.76965147]
[1724916300330,16.043,145.18,145.11,12.76965147]
[1724916300834,16.043,145.22,145.15,12.76965147]
[1724916301755,28.81265147,145.22,145.13,12.76965147]
[1724916302536,6.8877,145.19,145.09,12.76965147]
[1724916302736,57.76965147,145.18,145.09,12.76965147]
[1724916303321,16.043,145.17,145.09,12.76965147]
[1724916303642,45.0,145.16,145.09,12.76965147]
[1724916304225,57.76965147,145.16,145.07,27.06541896]
[1724916304423,64.65865147,145.16,145.07,18.98005147]
[1724916304648,64.65865147,145.16,145.07,12.76965147]
[1724916308343,6.8895,145.15,145.03,6.2104]
[1724916308523,57.76965147,145.14,145.05,12.76965147]
[1724916312634,45.0,145.14,145.05,12.76965147]
[1724916320558,16.4422,145.13,145.05,12.76965147]
[1724916320848,45.0,145.12,145.05,12.76965147]
[1724916326059,45.0,145.12,145.07,12.76965147]
[1724916327766,16.4422,145.13,145.09,12.76965147]
[1724916328229,22.6869,145.17,145.09,12.76965147]
[1724916329355,45.0,145.16,145.09,12.76965147]
[1724916336643,57.76965147,145.16,145.08,0.12549]
[1724916338355,57.76965147,145.16,145.07,12.76965147]
[1724916338554,64.65875147,145.16,145.07,12.76965147]
[1724916340236,6.8895,145.15,145.07,12.76965147]
[1724916340644,45.0,145.14,145.07,12.76965147]
[1724916342048,45.0,145.15,145.07,12.76965147]
[1724916342760,12.76965147,145.14,145.05,12.76965147]
[1724916342957,45.0,145.13,145.05,12.76965147]
[1724916344344,45.0,145.13,145.07,12.76965147]
[1724916344566,45.0,145.14,145.07,12.76965147]
[1724916345560,45.0,145.15,145.07,12.76965147]
[1724916345860,29.5754,145.17,145.07,12.76965147]
[1724916346063,26.889,145.16,145.07,12.76965147]
[1724916346459,26.889,145.16,145.06,0.12549]
[1724916346663,26.889,145.16,145.06,12.89514147]
[1724916347065,45.0,145.15,145.06,12.89514147]
[1724916350874,64.65915147,145.15,145.06,12.89514147]
[1724916352851,57.76965147,145.15,145.06,12.89514147]
[1724916357386,57.76965147,145.15,145.07,1.37656891]
[1724916361289,64.65915147,145.15,145.07,1.37656891]
[1724916361785,64.65915147,145.15,145.06,12.89514147]
[1724916364069,64.65915147,145.15,145.06,12.76965147]
[1724916367595,12.76965147,145.13,145.04,0.12549]
[1724916367779,45.0,145.12,145.03,18.98005147]
[1724916370791,12.76965147,145.09,145.03,6.2104]
[1724916371089,57.76965147,145.08,145.03,6.2104]
[1724916371387,45.0,145.08,145.03,6.2104]
[1724916371598,45.0,145.09,145.03,6.2104]
[1724916375994,51.8923,145.09,145.03,6.2104]
[1724916376496,45.0,145.09,145.03,6.2104]
[1724916377892,51.8924,145.09,145.03,6.2104]
[1724916378093,12.76965147,145.08,145.03,6.2104]
[1724916378300,51.8924,145.09,145.03,6.2104]
[1724916378301,45.0,145.07,145.03,6.2104]
[1724916378788,45.0,145.08,145.03,6.2104]
[1724916379791,45.0,145.09,145.03,6.2104]
[1724916381091,51.8923,145.09,145.03,6.2104]
[1724916381677,6.893,145.08,145.03,6.2104]
[1724916381902,45.0,145.07,145.03,6.2104]
[1724916382083,51.8924,145.09,145.03,6.2104]
[1724916384589,51.8924,145.09,145.02,15.0569]
[1724916385597,6.8927,145.08,145.02,15.0569]
[1724916385781,45.0,145.07,145.02,15.0569]
[1724916387404,57.76965147,145.07,145.02,15.0569]
[1724916390509,57.76965147,145.07,144.99,21.7063]
[1724916390799,64.66305147,145.07,144.99,21.7063]
[1724916391299,6.8946,145.04,144.99,21.7063]
[1724916391501,57.76965147,145.03,144.99,21.7063]
[1724916392412,64.66485147,145.03,144.91,15.0518]
[1724916392596,12.76965147,145.01,144.94,6.6545]
[1724916392901,45.0,145.0,144.94,6.6545]
[1724916399183,45.0,145.01,144.94,6.6545]
[1724916400311,45.0,145.01,144.94,19.42415147]
[1724916404307,50.0,145.06,144.96,12.76965147]
[1724916404507,28.7774,145.07,144.98,12.76965147]
[1724916404682,35.17315147,145.07,144.98,12.76965147]
[1724916406415,20.0,145.06,144.98,12.76965147]
[1724916406591,45.0,145.05,144.98,12.76965147]
[1724916408215,45.0,145.05,144.96,13.39928179]
[1724916408216,57.76965147,145.05,144.96,13.39928179]
[1724916408403,57.76965147,145.05,144.97,0.12549]
[1724916409016,57.76965147,145.05,144.96,12.76965147]
[1724916409495,57.76965147,145.05,144.95,15.62089]
[1724916409693,57.76965147,145.05,144.96,0.12549]
[1724916412322,57.76965147,145.05,144.95,28.26505147]
[1724916412702,12.76965147,145.03,144.95,15.4954]
[1724916412908,45.0,145.02,144.95,15.4954]
[1724916417602,12.76965147,145.02,144.95,15.4954]
[1724916417918,45.0,145.01,144.95,15.4954]
[1724916420220,12.76965147,144.98,144.9,21.9512]
[1724916420714,45.0,144.97,144.9,24.87764148]
[1724916421027,45.0,144.97,144.9,21.9512]
[1724916421724,45.0,144.97,144.91,2.92644282]
[1724916422110,45.0,144.97,144.9,21.9512]
[1724916424031,45.0,144.97,144.9,34.72085147]
[1724916426529,45.0,144.97,144.9,21.9512]
[1724916430717,45.0,144.97,144.9,34.72085147]
[1724916431418,34.43275147,144.96,144.84,7.22252485]
[1724916431737,12.76965147,144.94,144.84,2.99579101]
[1724916432029,45.0,144.93,144.85,12.76965147]
[1724916432823,45.0,144.93,144.86,0.12549]
[1724916433717,45.0,144.93,144.83,21.9111]
[1724916433918,12.76965147,144.92,144.83,34.68075147]
[1724916434126,45.0,144.91,144.79,7.22445462]
[1724916434322,28.00095147,144.9,144.8,12.76965147]
[1724916434637,45.0,144.89,144.8,2.99719515]
[1724916434839,45.0,144.89,144.8,12.76965147]
[1724916435535,51.4318,144.89,144.8,12.76965147]
[1724916438132,45.0,144.89,144.84,12.76965147]
[1724916438337,15.2313,144.9,144.86,12.76965147]
[1724916438513,21.6631,144.93,144.86,12.76965147]
[1724916440140,34.43275147,144.93,144.84,12.76965147]
[1724916440344,21.6631,144.93,144.84,12.76965147]
[1724916440513,34.43275147,144.93,144.84,12.76965147]
[1724916440838,45.0,144.92,144.84,12.76965147]
[1724916441053,12.76965147,144.91,144.79,21.9111]
[1724916441338,45.0,144.9,144.82,12.76965147]
[1724916441839,45.0,144.9,144.8,20.0]
[1724916442045,45.0,144.9,144.81,12.76965147]
[1724916442220,45.0,144.9,144.83,12.76965147]
[1724916442520,45.0,144.9,144.85,12.76965147]
[1724916442717,21.6631,144.93,144.85,12.76965147]
[1724916442924,21.6631,144.93,144.87,12.76965147]
[1724916443518,21.6631,144.93,144.85,12.76965147]
[1724916444157,15.2313,144.93,144.87,12.76965147]
[1724916449524,15.2313,144.93,144.89,12.76965147]
[1724916449844,21.6631,144.97,144.91,12.76965147]
[1724916450051,15.2313,144.97,144.93,12.76965147]
[1724916451934,15.2313,145.0,144.93,12.76965147]
[1724916452138,15.2313,145.0,144.95,12.76965147]
[1724916452545,15.2313,145.0,144.93,12.76965147]
[1724916453531,15.2313,145.0,144.95,12.76965147]
[1724916453845,21.6631,145.04,144.97,12.76965147]
[1724916454052,20.0,145.03,144.97,12.76965147]
[1724916455350,45.0,145.02,144.97,12.76965147]
[1724916455588,21.6631,145.04,144.99,12.76965147]
[1724916455753,15.2313,145.04,144.99,12.76965147]
[1724916458830,6.4318,145.07,144.99,12.76965147]
[1724916459029,6.4318,145.07,145.01,12.76965147]
[1724916459434,19.20145147,145.07,144.99,12.76965147]
[1724916459664,19.20145147,145.07,144.97,19.42105147]
[1724916460355,45.0,145.06,144.97,19.42105147]
[1724916463853,45.0,145.06,144.99,12.76965147]
[1724916473858,6.4318,145.07,144.99,12.76965147]
[1724916474063,6.4318,145.07,145.01,12.76965147]
[1724916477474,45.0,145.06,144.99,12.76965147]
[1724916477942,6.4318,145.07,144.99,12.76965147]
[1724916478555,45.0,145.06,144.99,12.76965147]
[1724916479767,45.0,145.06,144.98,12.89514147]
[1724916482069,16.5015,145.08,145.0,12.76965147]
[1724916482258,45.0,145.07,145.0,12.76965147]
[1724916483967,45.0,145.07,144.98,12.89514147]
[1724916484646,51.8932,145.07,144.98,12.89514147]
[1724916484848,45.0,145.07,144.98,12.89514147]
[1724916485963,51.8932,145.07,144.98,12.89514147]
[1724916486668,12.76965147,145.06,144.98,12.89514147]
[1724916486995,45.0,145.05,144.98,12.76965147]
[1724916488275,45.0,145.05,144.96,16.0889]
[1724916488468,45.0,145.05,144.98,12.76965147]
[1724916488850,16.5015,145.08,144.98,12.76965147]
[1724916489166,16.5015,145.08,144.99,0.25098]
[1724916489369,16.5015,145.08,145.0,12.76965147]
[1724916490247,45.0,145.07,145.0,12.76965147]
[1724916490447,45.0,145.07,145.02,12.76965147]
[1724916490660,16.5015,145.08,145.02,12.76965147]
[1724916490869,6.6116,145.11,145.04,12.76965147]
[1724916491054,6.6116,145.11,145.05,1.37856808]
[1724916492455,16.0543,145.12,145.04,12.76965147]
[1724916494179,45.0,145.11,145.03,0.12549]
[1724916494372,45.0,145.11,145.03,12.76965147]
[1724916497983,45.0,145.11,145.04,0.12549]
[1724916498277,28.82395147,145.12,145.04,0.25098]
[1724916499881,28.82395147,145.12,145.04,0.12549]
[1724916500263,45.0,145.11,145.03,12.76965147]
[1724916501980,16.0543,145.12,145.05,12.76965147]
[1724916505060,45.0,145.11,145.05,12.76965147]
[1724916505566,45.0,145.11,145.03,15.69337106]
[1724916505766,45.0,145.11,145.03,12.76965147]
[1724916509990,51.8913,145.11,145.03,12.76965147]
[1724916512086,35.71495147,145.12,145.03,12.76965147]
[1724916512493,6.8913,145.11,145.03,12.76965147]
[1724916512984,28.82395147,145.12,145.03,12.76965147]
[1724916513183,35.71485147,145.12,145.03,12.76965147]
[1724916514168,45.0,145.11,145.03,12.76965147]
[1724916520500,45.0,145.11,145.04,6.0469]
[1724916520977,45.0,145.11,145.05,12.76965147]
[1724916522691,18.93155147,145.15,145.05,12.76965147]
[1724916522896,20.0,145.14,145.05,12.76965147]
[1724916523084,20.0,145.14,145.07,12.76965147]
[1724916525896,45.0,145.13,145.07,12.76965147]
[1724916526893,45.0,145.13,145.06,15.0568]
[1724916541391,45.0,145.14,145.06,15.0568]
[1724916542796,15.872,145.16,145.09,12.76965147]
[1724916544912,25.81575147,145.18,145.09,12.76965147]
[1724916545214,45.0,145.17,145.09,12.76965147]
[1724916548201,45.0,145.17,145.09,18.97085147]
[1724916548988,15.872,145.19,145.1,16.5098]
[1724916549192,50.0,145.22,145.13,12.76965147]
[1724916549193,36.14825147,145.22,145.13,12.76965147]
[1724916550416,36.14825147,145.22,145.11,0.12549]
[1724916550417,12.76965147,145.2,145.11,0.12549]
[1724916550713,19.65675147,145.2,145.11,2.92097222]
[1724916551099,19.65675147,145.2,145.1,29.27945147]
[1724916551489,7.01299,145.19,145.1,16.5098]
[1724916551695,57.76965147,145.18,145.1,16.5098]
[1724916556016,45.0,145.18,145.1,16.5098]
[1724916556198,57.76965147,145.19,145.1,16.5098]
[1724916556835,64.65725147,145.19,145.1,16.5098]
[1724916557904,0.12549,145.18,145.1,16.5098]
[1724916560120,7.01349,145.18,145.1,16.5098]
[1724916560318,57.76965147,145.17,145.1,16.5098]
[1724916561119,64.65815147,145.17,145.1,16.5098]
[1724916561622,64.65815147,145.17,145.04,22.711]
[1724916561623,19.66095147,145.11,145.04,22.711]
[1724916561809,12.76965147,145.08,145.04,22.711]
[1724916564610,6.8918,145.1,145.04,22.711]
[1724916564814,57.76965147,145.09,145.04,22.711]
[1724916568702,45.0,145.09,145.04,22.711]
[1724916571819,12.76965147,145.08,145.04,22.711]
[1724916572022,45.0,145.07,145.04,22.711]
[1724916586040,45.0,145.07,145.0,24.35570684]
[1724916586837,12.76965147,145.06,145.0,21.432]
[1724916588537,45.0,145.05,145.0,21.432]
[1724916591937,116.28040588,145.11,145.0,21.432]
[1724916591938,12.76965147,145.08,145.0,21.432]
[1724916592150,45.0,145.07,145.0,21.432]
[1724916597264,12.76965147,145.06,145.0,21.432]
[1724916597565,45.0,145.05,145.0,21.432]
[1724916598448,12.76965147,145.06,145.0,21.432]
[1724916600362,15.2018,145.11,145.0,34.20165147]
[1724916600561,6.3391,145.15,145.03,6.4173]
[1724916600562,6.8903,145.14,145.03,6.4173]
[1724916600763,22.0913,145.15,145.04,27.78435147]
[1724916600969,12.76965147,145.13,145.04,27.78435147]
[1724916601286,22.0913,145.15,145.04,27.78435147]
[1724916601575,27.97145147,145.15,145.04,27.78435147]
[1724916601750,12.76965147,145.15,145.05,6.54279]
[1724916602154,12.76965147,145.15,145.05,9.46533789]
[1724916602459,12.76965147,145.13,145.05,9.33984789]
[1724916603050,12.76965147,145.13,145.05,6.4173]
[1724916603868,45.0,145.12,145.05,6.4173]
[1724916623187,12.76965147,145.14,145.05,6.4173]
[1724916623388,45.0,145.13,145.05,6.4173]
[1724916626976,45.0,145.13,145.05,19.18695147]
[1724916627175,12.76965147,145.14,145.05,19.18695147]
[1724916628218,6.889,145.16,145.05,19.18695147]
[1724916628373,57.76965147,145.15,145.05,19.18695147]
[1724916628970,57.76965147,145.15,145.06,15.5399]
[1724916629888,64.65905147,145.15,145.06,15.5399]
[1724916636686,57.76965147,145.15,145.06,15.5399]
[1724916637486,45.0,145.15,145.06,15.5399]
[1724916637686,45.0,145.15,145.07,19.42255147]
[1724916639510,57.76965147,145.15,145.07,19.42255147]
[1724916640286,57.76965147,145.15,145.07,6.6529]
[1724916640490,12.76965147,145.13,145.07,6.6529]
[1724916645200,45.0,145.12,145.07,6.6529]
[1724916647107,12.76965147,145.11,145.07,6.6529]
[1724916647610,45.0,145.1,145.07,6.6529]
[1724916659000,12.76965147,145.11,145.07,6.6529]
[1724916664302,6.8904,145.13,145.07,6.6529]